[Event "EYCC Open-U12 2019"]
[Site "Bratislava"]
[Date "2019.08.10"]
[Round "9.4"]
[White "Samadov, Read"]
[Black "Bat, Bilguun"]
[Result "1-0"]
[ECO "E06"]
[WhiteElo "2230"]
[BlackElo "2093"]
[Annotator "NA"]
[PlyCount "125"]
[EventDate "2019.08.02"]
[EventType "swiss"]
[EventCountry "SVK"]
[SourceTitle "playchess.com"]
[Source "ChessBase"]
[SourceQuality "1"]
[TimeControl "40/5400+30:1800+30"]

1. d4 {[%emt 0:00:00]} Nf6 {[%emt 0:00:00]} 2. c4 {[%emt 0:00:00]} e6 {[%emt 0:00:00]} 3. g3 {[%emt 0:00:10]} d5 {[%emt 0:00:09]} 4. Bg2 {[%emt 0:00:33]} Be7 {[%emt 0:00:17]} 5. Nf3 {[%emt 0:00:33]} O-O {[%emt 0:00:07]} 6. O-O {[%emt 0:00:32]} dxc4 {[%emt 0:00:20]} 7. Qc2 {[%emt 0:01:01]} b5 {[%emt 0:00:31]} 8. Nc3 {[%emt 0:12:05]} c6 {[%emt 0:03:40]} 9. b3 {[%emt 0:03:54]} b4 {[%emt 0:15:17]} 10. Nb1 {[%emt 0:05:51]} cxb3 {[%emt 0:00:55]} 11. axb3 {[%emt 0:00:10]} Ba6 {[%emt 0:02:12]} 12. Bb2 {[%emt 0:07:49]} Bb5 {[%emt 0:05:08]} 13. Ne5 {[%emt 0:04:39]} Nd5 {[%emt 0:03:49]} 14. Rc1 {[%emt 0:04:10]} a5 {[%emt 0:10:00]} 15. Nc4 {[%emt 0:06:24]} Nd7 {[%emt 0:12:58]} 16. e4 {[%emt 0:02:33]} N5f6 {[%emt 0:02:40]} 17. Nbd2 {[%emt 0:00:49]} h6 {[%emt 0:14:49]} 18. Ra2 {[%emt 0:04:48]} Ra7 {[%emt 0:03:40]} 19. Rca1 {[%emt 0:01:17]} Qc7 {[%emt 0:00:14]} 20. Rxa5 {[%emt 0:01:55]} Rfa8 {[%emt 0:00:08]} 21. Rxa7 {[%emt 0:01:35]} Rxa7 {[%emt 0:00:01]} 22. Qb1 {[%emt 0:07:07]} Qb7 {[%emt 0:02:07]} 23. e5 {[%emt 0:04:37]} Nd5 {[%emt 0:00:28]} 24. Ne4 {[%emt 0:01:41]} Rxa1 {[%emt 0:01:36]} 25. Qxa1 {[%emt 0:01:02]} Qa6 {[%emt 0:00:13]} 26. Qxa6 {[%emt 0:01:02]} Bxa6 {[%emt 0:00:02]} 27. Bf1 {[%emt 0:01:14]} f5 {[%emt 0:04:11]} 28. exf6 {[%emt 0:04:02]} N7xf6 {[%emt 0:00:19]} 29. Ned2 {[%emt 0:01:22]} Nc3 {[%emt 0:03:18]} 30. Bh3 {[%emt 0:01:05]} c5 {[%emt 0:02:21]} 31. Bxe6+ {[%emt 0:01:31]} Kf8 {[%emt 0:00:07]} 32. dxc5 {[%emt 0:08:00]} Bxc5 {[%emt 0:00:09]} 33. Ne3 {[%emt 0:01:54]} Ke7 {[%emt 0:04:57]} 34. Bc4 {[%emt 0:01:01]} Bb7 {[%emt 0:00:41]} 35. Bd3 {[%emt 0:02:19]} Nfd5 {[%emt 0:04:50]} 36. Ne4 {[%emt 0:04:16]} Nxe4 {[%emt 0:03:07]} 37. Bxe4 {[%emt 0:00:08]} Nxe3 {[%emt 0:00:07]} 38. Bxb7 {[%emt 0:00:06]} Nf5 {[%emt 0:00:07]} 39. Kg2 {[%emt 0:05:28]} Kd6 {[%emt 0:01:20]} 40. f4 {[%emt 0:00:00]} Bd4 {[%emt 0:00:00]} 41. Bc1 {[%emt 0:05:34]} Bc3 {[%emt 0:04:26]} 42. Ba6 {[%emt 0:01:35]} Kd5 {[%emt 0:04:14]} 43. Bd3 {[%emt 0:01:58]} Nd4 {[%emt 0:00:44]} 44. Bh7 {[%emt 0:00:43]} Ke6 {[%emt 0:16:56]} 45. Be3 {[%emt 0:08:44]} Kf7 {[%emt 0:00:39]} 46. Bd3 {[%emt 0:00:50]} Kf6 {[%emt 0:00:25]} 47. Bc4 {[%emt 0:00:12]} Kf5 {[%emt 0:00:11]} 48. Bd5 {[%emt 0:00:32]} Kf6 {[%emt 0:02:14]} 49. g4 {[%emt 0:02:04]} g5 {[%emt 0:02:25]} 50. h4 {[%emt 0:02:54]} gxf4 {[%emt 0:03:37]} 51. Bxf4 {[%emt 0:00:09]} Ne2 {[%emt 0:01:25]} 52. Bxh6 {[%emt 0:00:34]} Ke5 {[%emt 0:00:31]} 53. Bc4 {[%emt 0:00:40]} Nf4+ {[%emt 0:00:15]} 54. Kf3 {[%emt 0:00:15]} Ng6 {[%emt 0:00:21]} 55. h5 {[%emt 0:02:15]} Nh4+ {[%emt 0:00:32]} 56. Kf2 {[%emt 0:00:34]} Kf6 {[%emt 0:00:27]} 57. Bf4 {[%emt 0:00:17]} Be1+ {[%emt 0:00:32]} 58. Ke2 {[%emt 0:01:47]} Ng2 {[%emt 0:00:31]} 59. Bc1 {[%emt 0:00:19]} Bh4 {[%emt 0:00:18]} 60. Bd2 {[%emt 0:00:22]} Ke5 61. Bf4+ Kxf4 62. Be6 Ke5 63. Bc4 1-0

[Event "EYCC Open-U12 2019"]
[Site "Bratislava"]
[Date "2019.08.10"]
[Round "9.5"]
[White "Makridis, Dimitrios"]
[Black "Strybuk, Artsiom I"]
[Result "0-1"]
[ECO "C54"]
[WhiteElo "1798"]
[BlackElo "2193"]
[Annotator "NA"]
[PlyCount "94"]
[EventDate "2019.08.02"]
[EventType "swiss"]
[EventCountry "SVK"]
[SourceTitle "playchess.com"]
[Source "ChessBase"]
[SourceQuality "1"]
[TimeControl "40/5400+30:1800+30"]

1. e4 {[%emt 0:00:00]} e5 {[%emt 0:00:00]} 2. Nf3 {[%emt 0:00:00]} Nc6 {[%emt 0:00:00]} 3. Bc4 {[%emt 0:00:00]} Bc5 {[%emt 0:00:00]} 4. c3 {[%emt 0:00:00]} Nf6 {[%emt 0:00:00]} 5. d3 {[%emt 0:00:00]} O-O {[%emt 0:00:08]} 6. O-O {[%emt 0:01:26]} d6 {[%emt 0:00:06]} 7. Bb3 {[%emt 0:00:10]} Bb6 {[%emt 0:02:02]} 8. Nbd2 {[%emt 0:00:45]} Ne7 {[%emt 0:01:30]} 9. h3 {[%emt 0:03:31]} h6 {[%emt 0:02:43]} 10. Re1 {[%emt 0:00:09]} Ng6 {[%emt 0:01:28]} 11. Nf1 {[%emt 0:00:24]} c6 {[%emt 0:01:58]} 12. Ng3 {[%emt 0:00:31]} d5 {[%emt 0:08:04]} 13. exd5 {[%emt 0:14:33]} Nxd5 {[%emt 0:00:39]} 14. d4 {[%emt 0:01:33]} exd4 {[%emt 0:01:06]} 15. Nxd4 {[%emt 0:01:16]} Bc7 {[%emt 0:04:33]} 16. Bc2 {[%emt 0:08:45]} Ndf4 {[%emt 0:12:33]} 17. Bxf4 {[%emt 0:14:41]} Bxf4 {[%emt 0:06:06]} 18. Qf3 {[%emt 0:02:34]} Qc7 {[%emt 0:09:23]} 19. Nh5 {[%emt 0:07:56]} Bd7 {[%emt 0:06:16]} 20. Nxf4 {[%emt 0:07:07]} Qxf4 {[%emt 0:03:09]} 21. Qxf4 {[%emt 0:01:52]} Nxf4 {[%emt 0:00:02]} 22. Re7 {[%emt 0:01:06]} Rad8 {[%emt 0:01:58]} 23. Re4 {[%emt 0:09:16]} g5 {[%emt 0:10:31]} 24. Re3 {[%emt 0:06:19]} c5 {[%emt 0:03:35]} 25. Ne2 {[%emt 0:01:37]} Bc6 {[%emt 0:06:47]} 26. Nxf4 {[%emt 0:03:36]} gxf4 {[%emt 0:00:08]} 27. Re2 {[%emt 0:00:45]} f3 {[%emt 0:04:42]} 28. gxf3 {[%emt 0:00:13]} Bxf3 {[%emt 0:01:55]} 29. Re3 {[%emt 0:00:29]} Rd2 {[%emt 0:02:23]} 30. Bb3 {[%emt 0:05:41]} Bc6 {[%emt 0:00:49]} 31. Rd1 {[%emt 0:05:16]} Rxb2 {[%emt 0:04:53]} 32. Re7 {[%emt 0:01:37]} Kg7 {[%emt 0:00:27]} 33. Bc4 {[%emt 0:01:48]} Kf6 {[%emt 0:00:57]} 34. Re3 {[%emt 0:00:15]} Rg8+ {[%emt 0:00:33]} 35. Kf1 {[%emt 0:00:13]} Rg2 {[%emt 0:01:29]} 36. Be2 {[%emt 0:01:59]} Rh2 {[%emt 0:01:31]} 37. Rd6+ {[%emt 0:00:14]} Kg7 {[%emt 0:00:25]} 38. Rg3+ {[%emt 0:00:49]} Kf8 {[%emt 0:00:18]} 39. Rg1 {[%emt 0:00:33]} Rxa2 {[%emt 0:01:29]} 40. Rd8+ {[%emt 0:00:00]} Ke7 {[%emt 0:00:00]} 41. Rd3 {[%emt 0:01:15]} Ra1+ {[%emt 0:02:06]} 42. Rd1 {[%emt 0:00:24]} Rxd1+ {[%emt 0:00:08]} 43. Bxd1 {[%emt 0:00:05]} Rxh3 {[%emt 0:00:42]} 44. c4 {[%emt 0:00:33]} Rc3 {[%emt 0:00:52]} 45. Rg8 {[%emt 0:03:45]} Rxc4 {[%emt 0:00:49]} 46. f3 {[%emt 0:01:47]} Rc1 {[%emt 0:01:00]} 47. Ke2 {[%emt 0:00:06]} Bxf3+ {[%emt 0:00:37]} 0-1

[Event "EYCC Open-U12 2019"]
[Site "Bratislava"]
[Date "2019.08.10"]
[Round "9.6"]
[White "Ozkan, Taha"]
[Black "Pidluznij, Gleb"]
[Result "1-0"]
[ECO "E82"]
[WhiteElo "2140"]
[BlackElo "1947"]
[Annotator "ChessBase"]
[PlyCount "105"]
[EventDate "2019.08.02"]
[EventType "swiss"]
[EventCountry "SVK"]
[SourceTitle "playchess.com"]
[Source "ChessBase"]
[SourceQuality "1"]
[TimeControl "40/5400+30:1800+30"]

1. d4 {[%emt 0:00:00]} Nf6 {[%emt 0:00:00]} 2. c4 {[%emt 0:00:00]} g6 {[%emt 0:00:03]} 3. Nc3 {[%emt 0:00:00]} Bg7 {[%emt 0:00:15]} 4. e4 {[%emt 0:00:00]} d6 {[%emt 0:00:43]} 5. f3 {[%emt 0:00:11]} O-O {[%emt 0:00:34]} 6. Be3 {[%emt 0:00:06]} b6 {[%emt 0:00:12]} 7. Qd2 {[%emt 0:00:12]} c5 {[%emt 0:01:06]} 8. d5 {[%emt 0:00:07]} e6 {[%emt 0:01:05]} 9. dxe6 {[%emt 0:00:18]} Bxe6 {[%emt 0:00:28]} 10. O-O-O {[%emt 0:05:16]} Nc6 {[%emt 0:01:44]} 11. b3 {[%emt 0:04:57]} Nd7 {[%emt 0:20:24]} 12. Nge2 {[%emt 0:08:34]} Rc8 {[%emt 0:10:34]} 13. h4 {[%emt 0:08:56]} h5 {[%emt 0:05:41]} 14. Bg5 {[%emt 0:08:03]} Bf6 {[%emt 0:09:59]} 15. Nd5 {[%emt 0:18:34]} Bxd5 {[%emt 0:09:09]} 16. exd5 {[%emt 0:11:47]} Nce5 {[%emt 0:08:17]} 17. Ng3 {[%emt 0:08:06]} Bxg5 {[%emt 0:06:58]} 18. hxg5 {[%emt 0:01:12]} f5 {[%emt 0:02:18]} 19. f4 {[%emt 0:07:04]} Ng4 {[%emt 0:02:35]} 20. Re1 {[%emt 0:05:09]} Re8 {[%emt 0:01:39]} 21. Bd3 {[%emt 0:02:13]} Nf8 {[%emt 0:05:47]} 22. Nxf5 {[%emt 0:05:06]} Rxe1+ {[%emt 0:01:44]} 23. Qxe1 {[%emt 0:00:53]} gxf5 {[%emt 0:04:39]} 24. Bxf5 {[%emt 0:00:11]} Ne5 {[%emt 0:01:27]} 25. Qh4 {[%emt 0:04:55]} Neg6 {[%emt 0:04:15]} 26. Qxh5 {[%emt 0:00:16]} Nxf4 {[%emt 0:00:52]} 27. Qg4 {[%emt 0:00:28]} Ne2+ {[%emt 0:00:12]} 28. Kb2 {[%emt 0:00:43]} Qe7 {[%emt 0:00:37]} 29. Bxc8 {[%emt 0:00:38]} Qe5+ {[%emt 0:00:11]} 30. Ka3 {[%emt 0:00:16]} Nd4 {[%emt 0:00:46]} 31. Qd1 {[%emt 0:00:44]} a5 {[%emt 0:00:34]} 32. Re1 {[%emt 0:00:20]} Qxe1 {[%emt 0:00:08]} 33. Qxe1 {[%emt 0:00:34]} Nc2+ {[%emt 0:00:07]} 34. Ka4 {[%emt 0:00:23]} Nxe1 35. Kb5 {[%emt 0:00:05]} Nd3 {[%emt 0:00:38]} 36. Kxb6 {[%emt 0:00:11]} Nc1 {[%emt 0:00:37]} 37. Kxa5 {[%emt 0:00:38]} Nxa2 {[%emt 0:00:07]} 38. Kb6 {[%emt 0:00:25]} Nc1 {[%emt 0:01:57]} 39. Kc7 {[%emt 0:00:27]} Nxb3 {[%emt 0:00:24]} 40. Kxd6 {[%emt 0:00:00]} Kf7 {[%emt 0:00:00]} 41. Bf5 {[%emt 0:00:38]} Nd4 {[%emt 0:09:16]} 42. g4 {[%emt 0:06:08]} Ng6 {[%emt 0:00:30]} 43. Bxg6+ {[%emt 0:03:02]} Kxg6 {[%emt 0:00:26]} 44. Kxc5 {[%emt 0:00:50]} Nf3 {[%emt 0:00:37]} 45. d6 {[%emt 0:02:43]} Nxg5 {[%emt 0:00:23]} 46. d7 {[%emt 0:00:43]} Nf7 {[%emt 0:00:50]} 47. Kb6 {[%emt 0:01:22]} Kf6 {[%emt 0:00:09]} 48. Kc7 {[%emt 0:01:38]} Ke7 {[%emt 0:00:10]} 49. c5 {[%emt 0:00:49]} Nd8 {[%emt 0:00:10]} 50. c6 {[%emt 0:00:18]} Ne6+ {[%emt 0:00:31]} 51. Kc8 {[%emt 0:00:18]} Kd6 {[%emt 0:00:13]} 52. c7 {[%emt 0:00:42]} Nxc7 {[%emt 0:00:21]} 53. d8=Q+ {[%emt 0:00:08]} 1-0

[Event "EYCC Open-U12 2019"]
[Site "Bratislava"]
[Date "2019.08.10"]
[Round "9.7"]
[White "Makkar, Rajat"]
[Black "Vergara Anton, Diego"]
[Result "0-1"]
[ECO "A06"]
[WhiteElo "2064"]
[BlackElo "2183"]
[Annotator "NA"]
[PlyCount "106"]
[EventDate "2019.08.02"]
[EventType "swiss"]
[EventCountry "SVK"]
[SourceTitle "playchess.com"]
[Source "ChessBase"]
[SourceQuality "1"]
[TimeControl "40/5400+30:1800+30"]

1. Nf3 {[%emt 0:00:00]} d5 {[%emt 0:00:00]} 2. e3 {[%emt 0:00:02]} Nf6 {[%emt 0:00:29]} 3. c4 {[%emt 0:00:18]} e6 {[%emt 0:01:00]} 4. Nc3 {[%emt 0:00:24]} Be7 {[%emt 0:01:10]} 5. b3 {[%emt 0:00:36]} O-O {[%emt 0:01:02]} 6. Bb2 {[%emt 0:00:39]} c5 {[%emt 0:01:40]} 7. cxd5 {[%emt 0:00:28]} exd5 {[%emt 0:01:52]} 8. d4 {[%emt 0:01:05]} Nc6 {[%emt 0:02:58]} 9. Be2 {[%emt 0:01:35]} Bf5 {[%emt 0:06:47]} 10. O-O {[%emt 0:01:56]} Rc8 {[%emt 0:06:58]} 11. Rc1 {[%emt 0:01:04]} b6 {[%emt 0:05:20]} 12. Ba6 {[%emt 0:12:25]} Rc7 {[%emt 0:04:27]} 13. a3 {[%emt 0:12:18]} Nb8 {[%emt 0:06:24]} 14. Be2 {[%emt 0:00:51]} Rc8 {[%emt 0:06:43]} 15. Ne5 {[%emt 0:05:35]} a6 {[%emt 0:03:59]} 16. a4 {[%emt 0:07:36]} Re8 {[%emt 0:00:41]} 17. Bf3 {[%emt 0:02:55]} cxd4 {[%emt 0:02:06]} 18. Qxd4 {[%emt 0:05:49]} Bd6 {[%emt 0:02:00]} 19. Ng4 {[%emt 0:06:00]} Nxg4 {[%emt 0:03:39]} 20. Bxg4 {[%emt 0:01:37]} Nc6 {[%emt 0:04:25]} 21. Qd1 {[%emt 0:01:07]} Bxg4 {[%emt 0:00:31]} 22. Qxg4 {[%emt 0:01:07]} Ne5 {[%emt 0:01:51]} 23. Qd4 {[%emt 0:02:34]} Bc5 {[%emt 0:04:18]} 24. Qxd5 {[%emt 0:03:02]} Nd3 {[%emt 0:03:43]} 25. Qxd8 {[%emt 0:01:39]} Rexd8 {[%emt 0:00:07]} 26. Rb1 {[%emt 0:00:23]} Nxb2 {[%emt 0:03:05]} 27. Rxb2 {[%emt 0:00:26]} Bxe3 {[%emt 0:02:59]} 28. fxe3 {[%emt 0:06:34]} Rxc3 {[%emt 0:00:09]} 29. Re1 {[%emt 0:00:36]} Rdd3 {[%emt 0:02:05]} 30. b4 {[%emt 0:00:23]} Rxe3 {[%emt 0:02:12]} 31. Rxe3 {[%emt 0:00:10]} Rxe3 {[%emt 0:00:01]} 32. Rd2 {[%emt 0:00:17]} g6 {[%emt 0:00:51]} 33. Rd6 {[%emt 0:01:18]} Re6 {[%emt 0:01:46]} 34. Rd8+ {[%emt 0:01:51]} Kg7 {[%emt 0:00:01]} 35. Ra8 {[%emt 0:00:09]} b5 {[%emt 0:01:32]} 36. a5 {[%emt 0:00:09]} Rf6 {[%emt 0:03:52]} 37. g3 {[%emt 0:01:38]} Kh6 {[%emt 0:01:43]} 38. h4 {[%emt 0:00:54]} Kh5 {[%emt 0:02:47]} 39. Kg2 {[%emt 0:02:40]} Kg4 40. Re8 {[%emt 0:00:00]} Re6 {[%emt 0:00:00]} 41. Rf8 {[%emt 0:02:44]} Re2+ {[%emt 0:12:48]} 42. Kf1 {[%emt 0:01:13]} Re3 {[%emt 0:00:13]} 43. Ra8 {[%emt 0:01:04]} Rf3+ {[%emt 0:00:59]} 44. Ke2 {[%emt 0:00:11]} Rf6 {[%emt 0:00:19]} 45. Rb8 {[%emt 0:00:23]} Kxg3 {[%emt 0:02:37]} 46. Rb6 {[%emt 0:00:04]} Re6+ {[%emt 0:01:38]} 47. Kd3 {[%emt 0:00:32]} Kxh4 {[%emt 0:00:44]} 48. Kd4 {[%emt 0:00:04]} g5 {[%emt 0:01:43]} 49. Rb7 {[%emt 0:00:05]} g4 {[%emt 0:03:30]} 50. Rxf7 {[%emt 0:00:09]} h5 {[%emt 0:00:19]} 51. Kd5 {[%emt 0:00:13]} Rg6 {[%emt 0:00:41]} 52. Ke4 {[%emt 0:01:12]} g3 {[%emt 0:00:34]} 53. Rf4+ {[%emt 0:00:06]} Rg4 {[%emt 0:00:10]} 0-1

[Event "EYCC Open-U12 2019"]
[Site "Bratislava"]
[Date "2019.08.10"]
[Round "9.8"]
[White "Fiszer, Bartosz"]
[Black "Ciric, Pavle"]
[Result "1-0"]
[ECO "C05"]
[WhiteElo "2124"]
[BlackElo "1987"]
[Annotator "NA"]
[PlyCount "61"]
[EventDate "2019.08.02"]
[EventType "swiss"]
[EventCountry "SVK"]
[SourceTitle "playchess.com"]
[Source "ChessBase"]
[SourceQuality "1"]
[TimeControl "40/5400+30:1800+30"]

1. e4 {[%emt 0:00:00]} e6 {[%emt 0:00:00]} 2. d4 {[%emt 0:00:00]} d5 {[%emt 0:00:00]} 3. Nd2 {[%emt 0:00:04]} Nf6 {[%emt 0:01:29]} 4. e5 {[%emt 0:00:07]} Nfd7 {[%emt 0:00:04]} 5. f4 {[%emt 0:00:09]} c5 {[%emt 0:00:05]} 6. c3 {[%emt 0:00:04]} Nc6 {[%emt 0:00:02]} 7. Ndf3 {[%emt 0:00:14]} Be7 {[%emt 0:04:41]} 8. Bd3 {[%emt 0:00:15]} f5 {[%emt 0:06:43]} 9. Ne2 {[%emt 0:07:15]} O-O {[%emt 0:00:10]} 10. O-O {[%emt 0:00:07]} b6 {[%emt 0:05:47]} 11. Kh1 {[%emt 0:00:28]} a5 {[%emt 0:06:29]} 12. Be3 {[%emt 0:10:56]} Ba6 {[%emt 0:00:18]} 13. Bb1 {[%emt 0:00:30]} Kh8 {[%emt 0:08:37]} 14. h3 {[%emt 0:02:36]} Qe8 {[%emt 0:04:35]} 15. g4 {[%emt 0:02:59]} g6 {[%emt 0:00:43]} 16. Rf2 {[%emt 0:01:55]} Bxe2 {[%emt 0:00:45]} 17. Qxe2 {[%emt 0:00:39]} Rb8 {[%emt 0:04:23]} 18. Bc2 {[%emt 0:04:31]} b5 {[%emt 0:02:34]} 19. Rg1 {[%emt 0:01:10]} c4 {[%emt 0:03:58]} 20. h4 {[%emt 0:02:21]} Rg8 {[%emt 0:09:43]} 21. Rh2 {[%emt 0:21:33]} Qf7 {[%emt 0:08:29]} 22. h5 {[%emt 0:02:39]} gxh5 {[%emt 0:01:09]} 23. gxf5 {[%emt 0:07:29]} exf5 {[%emt 0:00:24]} 24. Ne1 {[%emt 0:02:27]} Rg4 {[%emt 0:02:26]} 25. Rxg4 {[%emt 0:06:59]} hxg4 {[%emt 0:00:28]} 26. Rh6 {[%emt 0:00:08]} Nd8 {[%emt 0:01:51]} 27. Qh2 {[%emt 0:00:04]} Rb6 {[%emt 0:15:27]} 28. Rh5 {[%emt 0:00:30]} g3 {[%emt 0:00:51]} 29. Qh3 {[%emt 0:00:07]} Nf8 {[%emt 0:00:21]} 30. Rxf5 {[%emt 0:00:47]} Qe6 {[%emt 0:03:18]} 31. Rxf8+ {[%emt 0:00:14]} 1-0

[Event "EYCC Open-U12 2019"]
[Site "Bratislava"]
[Date "2019.08.10"]
[Round "9.9"]
[White "Navumenka, Mikhei"]
[Black "von Mettenheim, Johannes"]
[Result "1-0"]
[ECO "B13"]
[WhiteElo "2196"]
[BlackElo "1809"]
[Annotator "NA"]
[PlyCount "55"]
[EventDate "2019.08.02"]
[EventType "swiss"]
[EventCountry "SVK"]
[SourceTitle "playchess.com"]
[Source "ChessBase"]
[SourceQuality "1"]
[TimeControl "40/5400+30:1800+30"]

1. e4 {[%emt 0:00:00]} c6 {[%emt 0:00:00]} 2. d4 {[%emt 0:00:00]} d5 {[%emt 0:00:00]} 3. exd5 {[%emt 0:00:00]} cxd5 {[%emt 0:00:00]} 4. c4 {[%emt 0:00:06]} Nf6 {[%emt 0:00:00]} 5. Nc3 {[%emt 0:00:05]} Nc6 {[%emt 0:00:29]} 6. Nf3 {[%emt 0:00:18]} Bg4 {[%emt 0:00:18]} 7. cxd5 {[%emt 0:01:14]} Nxd5 {[%emt 0:00:14]} 8. Qb3 {[%emt 0:00:27]} Bxf3 {[%emt 0:00:31]} 9. gxf3 {[%emt 0:00:04]} e6 {[%emt 0:00:18]} 10. Qxb7 {[%emt 0:01:22]} Nxd4 {[%emt 0:00:02]} 11. Bb5+ {[%emt 0:00:36]} Nxb5 {[%emt 0:00:02]} 12. Qc6+ {[%emt 0:00:09]} Ke7 {[%emt 0:00:01]} 13. Qc5+ {[%emt 0:04:17]} Nd6 {[%emt 0:07:20]} 14. Nxd5+ {[%emt 0:00:11]} exd5 {[%emt 0:00:02]} 15. O-O {[%emt 0:00:17]} Qc8 {[%emt 0:06:23]} 16. Qxd5 {[%emt 0:00:44]} Qb7 {[%emt 0:01:12]} 17. Qe5+ {[%emt 0:00:50]} Kd7 {[%emt 0:00:13]} 18. Bf4 {[%emt 0:08:31]} Qb5 {[%emt 0:08:40]} 19. Qd4 {[%emt 0:02:08]} Qc4 {[%emt 0:00:29]} 20. Qd2 {[%emt 0:00:23]} Re8 {[%emt 0:02:35]} 21. Rfd1 {[%emt 0:07:40]} Re2 {[%emt 0:01:55]} 22. Qa5 {[%emt 0:02:24]} a6 {[%emt 0:06:49]} 23. Bxd6 {[%emt 0:16:45]} Bxd6 {[%emt 0:00:01]} 24. Rac1 {[%emt 0:00:02]} Rc2 {[%emt 0:07:02]} 25. Qf5+ {[%emt 0:01:59]} Ke7 {[%emt 0:00:31]} 26. Rxc2 {[%emt 0:00:26]} Qh4 {[%emt 0:00:15]} 27. Rc7+ {[%emt 0:00:32]} Bxc7 {[%emt 0:00:06]} 28. Rd7+ {[%emt 0:00:07]} 1-0

[Event "EYCC Open-U12 2019"]
[Site "Bratislava"]
[Date "2019.08.10"]
[Round "9.10"]
[White "Magold, Filip"]
[Black "Macias Pino, Diego"]
[Result "1/2-1/2"]
[ECO "B12"]
[WhiteElo "1865"]
[BlackElo "2150"]
[Annotator "NA"]
[PlyCount "127"]
[EventDate "2019.08.02"]
[EventType "swiss"]
[EventCountry "SVK"]
[SourceTitle "playchess.com"]
[Source "ChessBase"]
[SourceQuality "1"]
[TimeControl "40/5400+30:1800+30"]

1. e4 {[%emt 0:00:00]} c6 {[%emt 0:00:00]} 2. d4 {[%emt 0:00:00]} d5 {[%emt 0:00:00]} 3. e5 {[%emt 0:00:00]} c5 {[%emt 0:00:09]} 4. dxc5 {[%emt 0:00:00]} e6 {[%emt 0:00:11]} 5. Nf3 {[%emt 0:00:16]} Bxc5 {[%emt 0:00:33]} 6. a3 {[%emt 0:00:19]} Ne7 {[%emt 0:00:53]} 7. b4 {[%emt 0:00:18]} Bb6 {[%emt 0:00:05]} 8. Bb2 {[%emt 0:00:12]} Ng6 {[%emt 0:01:28]} 9. Nbd2 {[%emt 0:05:16]} a5 {[%emt 0:02:12]} 10. b5 {[%emt 0:01:02]} Nd7 {[%emt 0:07:49]} 11. c4 {[%emt 0:05:01]} O-O {[%emt 0:10:33]} 12. Be2 {[%emt 0:11:42]} Bc7 {[%emt 0:11:36]} 13. O-O {[%emt 0:24:58]} Ndxe5 {[%emt 0:04:14]} 14. Qb3 {[%emt 0:01:34]} Nf4 {[%emt 0:25:16]} 15. Nxe5 {[%emt 0:07:28]} Nxe2+ {[%emt 0:01:10]} 16. Kh1 {[%emt 0:01:38]} d4 {[%emt 0:10:17]} 17. Nd3 {[%emt 0:03:31]} Bxh2 {[%emt 0:02:31]} 18. Rae1 {[%emt 0:03:04]} Bc7 {[%emt 0:01:56]} 19. Nf3 {[%emt 0:01:54]} Nf4 {[%emt 0:01:05]} 20. Nxf4 {[%emt 0:00:17]} Bxf4 {[%emt 0:00:01]} 21. Bxd4 {[%emt 0:00:08]} f6 {[%emt 0:05:10]} 22. c5 {[%emt 0:05:59]} Kh8 {[%emt 0:01:29]} 23. c6 {[%emt 0:00:52]} e5 {[%emt 0:01:32]} 24. Bc5 {[%emt 0:00:08]} Rg8 {[%emt 0:00:47]} 25. b6 {[%emt 0:01:31]} Qe8 {[%emt 0:00:54]} 26. g3 {[%emt 0:03:21]} Qxc6 {[%emt 0:04:51]} 27. gxf4 {[%emt 0:00:09]} e4 {[%emt 0:02:00]} 28. Nh4 {[%emt 0:03:43]} Qxc5 {[%emt 0:00:35]} 29. Rxe4 {[%emt 0:02:33]} Qh5 {[%emt 0:00:20]} 30. Qg3 {[%emt 0:00:22]} g5 {[%emt 0:03:20]} 31. fxg5 {[%emt 0:00:07]} Qxg5 {[%emt 0:00:25]} 32. Qxg5 {[%emt 0:02:04]} fxg5 {[%emt 0:00:02]} 33. Nf3 {[%emt 0:00:14]} Ra6 {[%emt 0:00:53]} 34. Re5 {[%emt 0:04:34]} Rxb6 {[%emt 0:00:51]} 35. Rxa5 {[%emt 0:01:02]} Bd7 {[%emt 0:00:30]} 36. Ne5 {[%emt 0:00:22]} Be6 {[%emt 0:00:01]} 37. Rc1 {[%emt 0:00:37]} h6 {[%emt 0:02:00]} 38. Rc7 {[%emt 0:00:49]} Rg7 {[%emt 0:00:03]} 39. Rac5 {[%emt 0:02:51]} Rb3 {[%emt 0:00:56]} 40. a4 {[%emt 0:00:00]} Ra3 {[%emt 0:00:00]} 41. a5 {[%emt 0:04:15]} Kh7 {[%emt 0:10:18]} 42. Kh2 {[%emt 0:02:14]} Rb3 {[%emt 0:01:35]} 43. Rxg7+ {[%emt 0:06:39]} Kxg7 {[%emt 0:00:02]} 44. Rc7+ {[%emt 0:00:07]} Kf6 {[%emt 0:04:43]} 45. Nd7+ {[%emt 0:00:54]} Bxd7 {[%emt 0:00:04]} 46. Rxd7 {[%emt 0:00:01]} Kf5 {[%emt 0:03:43]} 47. Kg2 {[%emt 0:00:24]} Rb5 {[%emt 0:03:17]} 48. Kg3 {[%emt 0:01:33]} Rb3+ {[%emt 0:01:47]} 49. Kg2 {[%emt 0:00:08]} h5 {[%emt 0:01:19]} 50. Rd6 {[%emt 0:00:39]} h4 {[%emt 0:00:52]} 51. a6 {[%emt 0:00:57]} bxa6 {[%emt 0:00:04]} 52. Rxa6 {[%emt 0:00:01]} Rc3 {[%emt 0:01:27]} 53. Rb6 {[%emt 0:00:20]} Ra3 {[%emt 0:00:06]} 54. Rc6 {[%emt 0:00:03]} Kg4 {[%emt 0:00:09]} 55. Rc4+ {[%emt 0:00:05]} Kh5 {[%emt 0:00:05]} 56. Rb4 {[%emt 0:00:14]} h3+ {[%emt 0:01:31]} 57. Kh2 {[%emt 0:00:04]} g4 {[%emt 0:00:05]} 58. Rf4 {[%emt 0:00:16]} Kh4 {[%emt 0:01:12]} 59. Rf8 {[%emt 0:00:10]} Kg5 {[%emt 0:00:28]} 60. Rg8+ {[%emt 0:00:28]} Kf4 {[%emt 0:00:16]} 61. Rf8+ {[%emt 0:00:31]} Ke4 {[%emt 0:00:26]} 62. Rg8 {[%emt 0:00:33]} Kf3 {[%emt 0:00:23]} 63. Rf8+ {[%emt 0:00:06]} Ke2 {[%emt 0:00:04]} 64. Rf4 1/2-1/2

[Event "EYCC Open-U12 2019"]
[Site "Bratislava"]
[Date "2019.08.10"]
[Round "9.12"]
[White "Habans Aguerrea, Javier"]
[Black "Kluehs, Gustaf"]
[Result "1-0"]
[ECO "B06"]
[WhiteElo "2083"]
[BlackElo "1811"]
[Annotator "NA RC"]
[PlyCount "49"]
[EventDate "2019.08.02"]
[EventType "swiss"]
[EventCountry "SVK"]
[SourceTitle "playchess.com"]
[Source "ChessBase"]
[SourceQuality "1"]
[TimeControl "40/5400+30:1800+30"]

1. d4 {[%emt 0:00:00]} g6 {[%emt 0:00:00]} 2. e4 {[%emt 0:00:00]} Bg7 {[%emt 0:00:00]} 3. Nf3 {[%emt 0:01:05]} d6 {[%emt 0:01:59]} 4. Nc3 {[%emt 0:00:11]} Nc6 {[%emt 0:01:23]} 5. Bc4 {[%emt 0:00:58]} e5 {[%emt 0:03:54]} 6. dxe5 {[%emt 0:01:07]} Nxe5 {[%emt 0:01:43]} 7. Nxe5 {[%emt 0:00:14]} Bxe5 {[%emt 0:00:10]} 8. f4 {[%emt 0:07:20]} Bg7 {[%emt 0:02:58]} 9. O-O {[%emt 0:01:06]} Be6 {[%emt 0:09:57]} 10. Bxe6 {[%emt 0:02:13]} fxe6 {[%emt 0:00:03]} 11. f5 {[%emt 0:00:15]} Qe7 {[%emt 0:02:30]} 12. fxg6 {[%emt 0:05:17]} O-O-O {[%emt 0:01:19]} 13. Rf7 {[%emt 0:00:28]} Qh4 {[%emt 0:01:00]} 14. g3 {[%emt 0:07:43]} Qh3 {[%emt 0:01:31]} 15. Rxg7 {[%emt 0:00:40]} hxg6 {[%emt 0:00:11]} 16. Qe2 {[%emt 0:01:58]} Nf6 {[%emt 0:05:44]} 17. Rxg6 {[%emt 0:06:41]} Rdf8 {[%emt 0:01:13]} 18. Be3 {[%emt 0:12:23]} Nd7 {[%emt 0:05:46]} 19. Bf4 {[%emt 0:07:19]} d5 {[%emt 0:03:54]} 20. exd5 {[%emt 0:06:11]} e5 {[%emt 0:00:09]} 21. Be3 {[%emt 0:01:25]} e4 {[%emt 0:02:35]} 22. Bf4 {[%emt 0:04:10]} e3 {[%emt 0:03:06]} 23. Qg2 {[%emt 0:05:45]} Qh7 {[%emt 0:02:39]} 24. Rh6 {[%emt 0:00:35]} Rxf4 {[%emt 0:02:47]} 25. Rxh7 1-0